{"text_format":"3","workbook":"xlsx","n_sheets":3,"sheets":["Relatório Orçamental Mensal","Despesas Mensais","Dados Adicionais"],"not_rendered":{"charts":1,"defined_names":4,"pivot_tables":2},"read":"whole","date_system":"1900"}

{"sheet":"Relatório Orçamental Mensal","index":0,"n_rows":34,"n_cols":13,"rows_kept":34,"merged":[[7,1,10,1],[7,5,10,5],[7,6,10,6],[12,1,16,1],[12,5,16,5],[12,6,16,6]]}
[null,"Descrição Orçamental",{"$nulls":7},"Resumo Orçamental"]
[null,"Balanço"]
[null,"Balanço Previsto","(Previsto menos despesas)",{"$nulls":3},{"$f":"D17-SUM(DetalhesDoOrçamento[Custo Previsto])","v":{"v":1585,"d":"1,585 €"}}]
[null,"Balanço Real ","(Real menos despesas)",{"$nulls":3},{"$f":"D11-SUM(DetalhesDoOrçamento[Custo Real])","v":{"v":1740,"d":"1,740 €"}}]
[null,"Diferença","(Real menos previsto)",{"$nulls":3},{"$f":"G4-G3","v":{"v":155,"d":"155 €"}}]
[]
[null,"Rendimento",{"$nulls":3},"Despesas",{"$nulls":3},"Clique com o botão direito do rato em TabelaDinâmica e, em seguida, clique em Atualizar para atualizar"]
[null,"REAL","Rendimento 1",{"v":5800,"d":"5,800 €"},null,"REAL",{"$f":"SUM(DetalhesDoOrçamento[Custo Real])","v":{"v":7860,"d":"7,860 €"}}]
[null,null,"Rendimento 2",{"v":2300,"d":"2,300 €"},{"$nulls":5},"Categoria","Soma de Custo Previsto","Soma de Custo Real","Soma de Diferença"]
[null,null,"Rendimento extra",{"v":1500,"d":"1,500 €"},{"$nulls":5},"Filhos",{"v":140,"d":"140 €"},{"v":140,"d":"140 €"},{"v":0,"d":"0 €"}]
[null,null,"Rendimento total",{"$f":"SUM(D8:D10)","v":{"v":9600,"d":"9,600 €"}}]
[{"$nulls":9},"Entretenimento",{"v":400,"d":"400 €"},{"v":358,"d":"358 €"},{"v":42,"d":"42 €"}]
[null,"PREVISTO",{"$nulls":3},"PREVISTO",{"$f":"SUM(DetalhesDoOrçamento[Custo Previsto])","v":{"v":7915,"d":"7,915 €"}}]
[null,null,"Rendimento 1",{"v":6000,"d":"6,000 €"},{"$nulls":5},"Alimentação",{"v":1100,"d":"1,100 €"},{"v":1320,"d":"1,320 €"},{"v":-220,"d":"-220 €"}]
[null,null,"Rendimento 2",{"v":1000,"d":"1,000 €"}]
[null,null,"Rendimento extra",{"v":2500,"d":"2,500 €"},{"$nulls":5},"Presentes e Beneficiência",{"v":100,"d":"100 €"},{"v":125,"d":"125 €"},{"v":-25,"d":"-25 €"}]
[null,null,"Rendimento total",{"$f":"SUM(D14:D16)","v":{"v":9500,"d":"9,500 €"}}]
[{"$nulls":9},"Habitação",{"v":2830,"d":"2,830 €"},{"v":2702,"d":"2,702 €"},{"v":128,"d":"128 €"}]
[]
[{"$nulls":9},"Seguro",{"v":900,"d":"900 €"},{"v":900,"d":"900 €"},{"v":0,"d":"0 €"}]
[]
[{"$nulls":9},"Empréstimos",{"v":200,"d":"200 €"},{"v":200,"d":"200 €"},{"v":0,"d":"0 €"}]
[]
[{"$nulls":9},"Cuidados Pessoais",{"v":150,"d":"150 €"},{"v":140,"d":"140 €"},{"v":10,"d":"10 €"}]
[]
[{"$nulls":9},"Animais de estimação",{"v":170,"d":"170 €"},{"v":100,"d":"100 €"},{"v":70,"d":"70 €"}]
[]
[{"$nulls":9},"Poupanças ou Investimento",{"v":200,"d":"200 €"},{"v":200,"d":"200 €"},{"v":0,"d":"0 €"}]
[]
[{"$nulls":9},"Impostos",{"v":300,"d":"300 €"},{"v":300,"d":"300 €"},{"v":0,"d":"0 €"}]
[]
[{"$nulls":9},"Transporte",{"v":1425,"d":"1,425 €"},{"v":1375,"d":"1,375 €"},{"v":50,"d":"50 €"}]
[]
[{"$nulls":9},"Загальний підсумок",{"v":7915,"d":"7,915 €"},{"v":7860,"d":"7,860 €"},{"v":55,"d":"55 €"}]

{"sheet":"Despesas Mensais","index":1,"n_rows":62,"n_cols":7,"rows_kept":62}
[null,"Despesas Mensais"]
[null,"Descrição","Categoria","Custo Previsto","Custo Real","Diferença","Descrição Geral do Custo Real"]
[null,"Atividades extracurriculares","Filhos",{"v":40,"d":"40 €"},{"v":40,"d":"40 €"},{"$f":"DetalhesDoOrçamento[[#This Row],[Custo Previsto]]-DetalhesDoOrçamento[[#This Row],[Custo Real]]","v":{"v":0,"d":"0 €"}},{"$f":"DetalhesDoOrçamento[[#This Row],[Custo Real]]","v":{"v":40,"d":"$40"}}]
[null,"Saúde","Filhos",null,null,{"$f":"DetalhesDoOrçamento[[#This Row],[Custo Previsto]]-DetalhesDoOrçamento[[#This Row],[Custo Real]]","v":{"v":0,"d":"0 €"}},{"$f":"DetalhesDoOrçamento[[#This Row],[Custo Real]]","v":{"v":0,"d":"$0"}}]
[null,"Material Escolar","Filhos",null,null,{"$f":"DetalhesDoOrçamento[[#This Row],[Custo Previsto]]-DetalhesDoOrçamento[[#This Row],[Custo Real]]","v":{"v":0,"d":"0 €"}},{"$f":"DetalhesDoOrçamento[[#This Row],[Custo Real]]","v":{"v":0,"d":"$0"}}]
[null,"Propinas","Filhos",{"v":100,"d":"100 €"},{"v":100,"d":"100 €"},{"$f":"DetalhesDoOrçamento[[#This Row],[Custo Previsto]]-DetalhesDoOrçamento[[#This Row],[Custo Real]]","v":{"v":0,"d":"0 €"}},{"$f":"DetalhesDoOrçamento[[#This Row],[Custo Real]]","v":{"v":100,"d":"$100"}}]
[null,"Concertos","Entretenimento",{"v":50,"d":"50 €"},{"v":40,"d":"40 €"},{"$f":"DetalhesDoOrçamento[[#This Row],[Custo Previsto]]-DetalhesDoOrçamento[[#This Row],[Custo Real]]","v":{"v":10,"d":"10 €"}},{"$f":"DetalhesDoOrçamento[[#This Row],[Custo Real]]","v":{"v":40,"d":"$40"}}]
[null,"Teatro","Entretenimento",{"v":200,"d":"200 €"},{"v":150,"d":"150 €"},{"$f":"DetalhesDoOrçamento[[#This Row],[Custo Previsto]]-DetalhesDoOrçamento[[#This Row],[Custo Real]]","v":{"v":50,"d":"50 €"}},{"$f":"DetalhesDoOrçamento[[#This Row],[Custo Real]]","v":{"v":150,"d":"$150"}}]
[null,"Filmes","Entretenimento",{"v":50,"d":"50 €"},{"v":28,"d":"28 €"},{"$f":"DetalhesDoOrçamento[[#This Row],[Custo Previsto]]-DetalhesDoOrçamento[[#This Row],[Custo Real]]","v":{"v":22,"d":"22 €"}},{"$f":"DetalhesDoOrçamento[[#This Row],[Custo Real]]","v":{"v":28,"d":"$28"}}]
[null,"Música (CDs, transferências, etc.)","Entretenimento",{"v":50,"d":"50 €"},{"v":30,"d":"30 €"},{"$f":"DetalhesDoOrçamento[[#This Row],[Custo Previsto]]-DetalhesDoOrçamento[[#This Row],[Custo Real]]","v":{"v":20,"d":"20 €"}},{"$f":"DetalhesDoOrçamento[[#This Row],[Custo Real]]","v":{"v":30,"d":"$30"}}]
[null,"Eventos Desportivos","Entretenimento",{"v":0,"d":"0 €"},{"v":40,"d":"40 €"},{"$f":"DetalhesDoOrçamento[[#This Row],[Custo Previsto]]-DetalhesDoOrçamento[[#This Row],[Custo Real]]","v":{"v":-40,"d":"-40 €"}},{"$f":"DetalhesDoOrçamento[[#This Row],[Custo Real]]","v":{"v":40,"d":"$40"}}]
[null,"Vídeo/DVD (Compras)","Entretenimento",{"v":20,"d":"20 €"},{"v":50,"d":"50 €"},{"$f":"DetalhesDoOrçamento[[#This Row],[Custo Previsto]]-DetalhesDoOrçamento[[#This Row],[Custo Real]]","v":{"v":-30,"d":"-30 €"}},{"$f":"DetalhesDoOrçamento[[#This Row],[Custo Real]]","v":{"v":50,"d":"$50"}}]
[null,"Vídeo/DVD (Aluguer)","Entretenimento",{"v":30,"d":"30 €"},{"v":20,"d":"20 €"},{"$f":"DetalhesDoOrçamento[[#This Row],[Custo Previsto]]-DetalhesDoOrçamento[[#This Row],[Custo Real]]","v":{"v":10,"d":"10 €"}},{"$f":"DetalhesDoOrçamento[[#This Row],[Custo Real]]","v":{"v":20,"d":"$20"}}]
[null,"Jantar Fora","Alimentação",{"v":1000,"d":"1,000 €"},{"v":1200,"d":"1,200 €"},{"$f":"DetalhesDoOrçamento[[#This Row],[Custo Previsto]]-DetalhesDoOrçamento[[#This Row],[Custo Real]]","v":{"v":-200,"d":"-200 €"}},{"$f":"DetalhesDoOrçamento[[#This Row],[Custo Real]]","v":{"v":1200,"d":"$1,200"}}]
[null,"Compras de mercearia","Alimentação",{"v":100,"d":"100 €"},{"v":120,"d":"120 €"},{"$f":"DetalhesDoOrçamento[[#This Row],[Custo Previsto]]-DetalhesDoOrçamento[[#This Row],[Custo Real]]","v":{"v":-20,"d":"-20 €"}},{"$f":"DetalhesDoOrçamento[[#This Row],[Custo Real]]","v":{"v":120,"d":"$120"}}]
[null,"Beneficiência 1","Presentes e Beneficiência",{"v":75,"d":"75 €"},{"v":100,"d":"100 €"},{"$f":"DetalhesDoOrçamento[[#This Row],[Custo Previsto]]-DetalhesDoOrçamento[[#This Row],[Custo Real]]","v":{"v":-25,"d":"-25 €"}},{"$f":"DetalhesDoOrçamento[[#This Row],[Custo Real]]","v":{"v":100,"d":"$100"}}]
[null,"Beneficiência 2","Presentes e Beneficiência",{"v":25,"d":"25 €"},{"v":25,"d":"25 €"},{"$f":"DetalhesDoOrçamento[[#This Row],[Custo Previsto]]-DetalhesDoOrçamento[[#This Row],[Custo Real]]","v":{"v":0,"d":"0 €"}},{"$f":"DetalhesDoOrçamento[[#This Row],[Custo Real]]","v":{"v":25,"d":"$25"}}]
[null,"Presente 1","Presentes e Beneficiência",null,null,{"$f":"DetalhesDoOrçamento[[#This Row],[Custo Previsto]]-DetalhesDoOrçamento[[#This Row],[Custo Real]]","v":{"v":0,"d":"0 €"}},{"$f":"DetalhesDoOrçamento[[#This Row],[Custo Real]]","v":{"v":0,"d":"$0"}}]
[null,"Presente 2","Presentes e Beneficiência",null,null,{"$f":"DetalhesDoOrçamento[[#This Row],[Custo Previsto]]-DetalhesDoOrçamento[[#This Row],[Custo Real]]","v":{"v":0,"d":"0 €"}},{"$f":"DetalhesDoOrçamento[[#This Row],[Custo Real]]","v":{"v":0,"d":"$0"}}]
[null,"Televisão por Cabo/Satélite","Habitação",{"v":100,"d":"100 €"},{"v":100,"d":"100 €"},{"$f":"DetalhesDoOrçamento[[#This Row],[Custo Previsto]]-DetalhesDoOrçamento[[#This Row],[Custo Real]]","v":{"v":0,"d":"0 €"}},{"$f":"DetalhesDoOrçamento[[#This Row],[Custo Real]]","v":{"v":100,"d":"$100"}}]
[null,"Eletricidade","Habitação",{"v":45,"d":"45 €"},{"v":50,"d":"50 €"},{"$f":"DetalhesDoOrçamento[[#This Row],[Custo Previsto]]-DetalhesDoOrçamento[[#This Row],[Custo Real]]","v":{"v":-5,"d":"-5 €"}},{"$f":"DetalhesDoOrçamento[[#This Row],[Custo Real]]","v":{"v":50,"d":"$50"}}]
[null,"Gás","Habitação",{"v":300,"d":"300 €"},{"v":400,"d":"400 €"},{"$f":"DetalhesDoOrçamento[[#This Row],[Custo Previsto]]-DetalhesDoOrçamento[[#This Row],[Custo Real]]","v":{"v":-100,"d":"-100 €"}},{"$f":"DetalhesDoOrçamento[[#This Row],[Custo Real]]","v":{"v":400,"d":"$400"}}]
[null,"Serviços de Limpeza Doméstica","Habitação",{"v":200,"d":"200 €"},null,{"$f":"DetalhesDoOrçamento[[#This Row],[Custo Previsto]]-DetalhesDoOrçamento[[#This Row],[Custo Real]]","v":{"v":200,"d":"200 €"}},{"$f":"DetalhesDoOrçamento[[#This Row],[Custo Real]]","v":{"v":0,"d":"$0"}}]
[null,"Manutenção","Habitação",{"v":200,"d":"200 €"},{"v":150,"d":"150 €"},{"$f":"DetalhesDoOrçamento[[#This Row],[Custo Previsto]]-DetalhesDoOrçamento[[#This Row],[Custo Real]]","v":{"v":50,"d":"50 €"}},{"$f":"DetalhesDoOrçamento[[#This Row],[Custo Real]]","v":{"v":150,"d":"$150"}}]
[null,"Hipoteca ou Aluger","Habitação",{"v":1700,"d":"1,700 €"},{"v":1700,"d":"1,700 €"},{"$f":"DetalhesDoOrçamento[[#This Row],[Custo Previsto]]-DetalhesDoOrçamento[[#This Row],[Custo Real]]","v":{"v":0,"d":"0 €"}},{"$f":"DetalhesDoOrçamento[[#This Row],[Custo Real]]","v":{"v":1700,"d":"$1,700"}}]
[null,"Petróleo/gás natural","Habitação",null,null,{"$f":"DetalhesDoOrçamento[[#This Row],[Custo Previsto]]-DetalhesDoOrçamento[[#This Row],[Custo Real]]","v":{"v":0,"d":"0 €"}},{"$f":"DetalhesDoOrçamento[[#This Row],[Custo Real]]","v":{"v":0,"d":"$0"}}]
[null,"Internet","Habitação",{"v":100,"d":"100 €"},{"v":100,"d":"100 €"},{"$f":"DetalhesDoOrçamento[[#This Row],[Custo Previsto]]-DetalhesDoOrçamento[[#This Row],[Custo Real]]","v":{"v":0,"d":"0 €"}},{"$f":"DetalhesDoOrçamento[[#This Row],[Custo Real]]","v":{"v":100,"d":"$100"}}]
[null,"Telemóvel","Habitação",{"v":60,"d":"60 €"},{"v":60,"d":"60 €"},{"$f":"DetalhesDoOrçamento[[#This Row],[Custo Previsto]]-DetalhesDoOrçamento[[#This Row],[Custo Real]]","v":{"v":0,"d":"0 €"}},{"$f":"DetalhesDoOrçamento[[#This Row],[Custo Real]]","v":{"v":60,"d":"$60"}}]
[null,"Telefone (Casa)","Habitação",{"v":35,"d":"35 €"},{"v":39,"d":"39 €"},{"$f":"DetalhesDoOrçamento[[#This Row],[Custo Previsto]]-DetalhesDoOrçamento[[#This Row],[Custo Real]]","v":{"v":-4,"d":"-4 €"}},{"$f":"DetalhesDoOrçamento[[#This Row],[Custo Real]]","v":{"v":39,"d":"$39"}}]
[null,"Fornecimentos","Habitação",{"v":40,"d":"40 €"},{"v":55,"d":"55 €"},{"$f":"DetalhesDoOrçamento[[#This Row],[Custo Previsto]]-DetalhesDoOrçamento[[#This Row],[Custo Real]]","v":{"v":-15,"d":"-15 €"}},{"$f":"DetalhesDoOrçamento[[#This Row],[Custo Real]]","v":{"v":55,"d":"$55"}}]
[null,"Remoção de esgotos e Reciclagem","Habitação",{"v":25,"d":"25 €"},{"v":22,"d":"22 €"},{"$f":"DetalhesDoOrçamento[[#This Row],[Custo Previsto]]-DetalhesDoOrçamento[[#This Row],[Custo Real]]","v":{"v":3,"d":"3 €"}},{"$f":"DetalhesDoOrçamento[[#This Row],[Custo Real]]","v":{"v":22,"d":"$22"}}]
[null,"Água e Canalização","Habitação",{"v":25,"d":"25 €"},{"v":26,"d":"26 €"},{"$f":"DetalhesDoOrçamento[[#This Row],[Custo Previsto]]-DetalhesDoOrçamento[[#This Row],[Custo Real]]","v":{"v":-1,"d":"-1 €"}},{"$f":"DetalhesDoOrçamento[[#This Row],[Custo Real]]","v":{"v":26,"d":"$26"}}]
[null,"Saúde","Seguro",{"v":400,"d":"400 €"},{"v":400,"d":"400 €"},{"$f":"DetalhesDoOrçamento[[#This Row],[Custo Previsto]]-DetalhesDoOrçamento[[#This Row],[Custo Real]]","v":{"v":0,"d":"0 €"}},{"$f":"DetalhesDoOrçamento[[#This Row],[Custo Real]]","v":{"v":400,"d":"$400"}}]
[null,"Casa","Seguro",{"v":400,"d":"400 €"},{"v":400,"d":"400 €"},{"$f":"DetalhesDoOrçamento[[#This Row],[Custo Previsto]]-DetalhesDoOrçamento[[#This Row],[Custo Real]]","v":{"v":0,"d":"0 €"}},{"$f":"DetalhesDoOrçamento[[#This Row],[Custo Real]]","v":{"v":400,"d":"$400"}}]
[null,"Quotidiano","Seguro",{"v":100,"d":"100 €"},{"v":100,"d":"100 €"},{"$f":"DetalhesDoOrçamento[[#This Row],[Custo Previsto]]-DetalhesDoOrçamento[[#This Row],[Custo Real]]","v":{"v":0,"d":"0 €"}},{"$f":"DetalhesDoOrçamento[[#This Row],[Custo Real]]","v":{"v":100,"d":"$100"}}]
[null,"Cartão de Crédito 1","Empréstimos",{"v":200,"d":"200 €"},{"v":200,"d":"200 €"},{"$f":"DetalhesDoOrçamento[[#This Row],[Custo Previsto]]-DetalhesDoOrçamento[[#This Row],[Custo Real]]","v":{"v":0,"d":"0 €"}},{"$f":"DetalhesDoOrçamento[[#This Row],[Custo Real]]","v":{"v":200,"d":"$200"}}]
[null,"Cartão de Crédito 2","Empréstimos",null,null,{"$f":"DetalhesDoOrçamento[[#This Row],[Custo Previsto]]-DetalhesDoOrçamento[[#This Row],[Custo Real]]","v":{"v":0,"d":"0 €"}},{"$f":"DetalhesDoOrçamento[[#This Row],[Custo Real]]","v":{"v":0,"d":"$0"}}]
[null,"Cartão de Crédito 3","Empréstimos",null,null,{"$f":"DetalhesDoOrçamento[[#This Row],[Custo Previsto]]-DetalhesDoOrçamento[[#This Row],[Custo Real]]","v":{"v":0,"d":"0 €"}},{"$f":"DetalhesDoOrçamento[[#This Row],[Custo Real]]","v":{"v":0,"d":"$0"}}]
[null,"Pessoal","Empréstimos",null,null,{"$f":"DetalhesDoOrçamento[[#This Row],[Custo Previsto]]-DetalhesDoOrçamento[[#This Row],[Custo Real]]","v":{"v":0,"d":"0 €"}},{"$f":"DetalhesDoOrçamento[[#This Row],[Custo Real]]","v":{"v":0,"d":"$0"}}]
[null,"Estudantes","Empréstimos",null,null,{"$f":"DetalhesDoOrçamento[[#This Row],[Custo Previsto]]-DetalhesDoOrçamento[[#This Row],[Custo Real]]","v":{"v":0,"d":"0 €"}},{"$f":"DetalhesDoOrçamento[[#This Row],[Custo Real]]","v":{"v":0,"d":"$0"}}]
[null,"Vestuário","Cuidados Pessoais",{"v":150,"d":"150 €"},{"v":140,"d":"140 €"},{"$f":"DetalhesDoOrçamento[[#This Row],[Custo Previsto]]-DetalhesDoOrçamento[[#This Row],[Custo Real]]","v":{"v":10,"d":"10 €"}},{"$f":"DetalhesDoOrçamento[[#This Row],[Custo Real]]","v":{"v":140,"d":"$140"}}]
[null,"Lavandaria","Cuidados Pessoais",null,null,{"$f":"DetalhesDoOrçamento[[#This Row],[Custo Previsto]]-DetalhesDoOrçamento[[#This Row],[Custo Real]]","v":{"v":0,"d":"0 €"}},{"$f":"DetalhesDoOrçamento[[#This Row],[Custo Real]]","v":{"v":0,"d":"$0"}}]
[null,"Cabelo e Unhas","Cuidados Pessoais",null,null,{"$f":"DetalhesDoOrçamento[[#This Row],[Custo Previsto]]-DetalhesDoOrçamento[[#This Row],[Custo Real]]","v":{"v":0,"d":"0 €"}},{"$f":"DetalhesDoOrçamento[[#This Row],[Custo Real]]","v":{"v":0,"d":"$0"}}]
[null,"Ginásio","Cuidados Pessoais",null,null,{"$f":"DetalhesDoOrçamento[[#This Row],[Custo Previsto]]-DetalhesDoOrçamento[[#This Row],[Custo Real]]","v":{"v":0,"d":"0 €"}},{"$f":"DetalhesDoOrçamento[[#This Row],[Custo Real]]","v":{"v":0,"d":"$0"}}]
[null,"Saúde","Cuidados Pessoais",null,null,{"$f":"DetalhesDoOrçamento[[#This Row],[Custo Previsto]]-DetalhesDoOrçamento[[#This Row],[Custo Real]]","v":{"v":0,"d":"0 €"}},{"$f":"DetalhesDoOrçamento[[#This Row],[Custo Real]]","v":{"v":0,"d":"$0"}}]
[null,"Alimentação","Animais de estimação",{"v":150,"d":"150 €"},{"v":75,"d":"75 €"},{"$f":"DetalhesDoOrçamento[[#This Row],[Custo Previsto]]-DetalhesDoOrçamento[[#This Row],[Custo Real]]","v":{"v":75,"d":"75 €"}},{"$f":"DetalhesDoOrçamento[[#This Row],[Custo Real]]","v":{"v":75,"d":"$75"}}]
[null,"Cuidados pessoais","Animais de estimação",{"v":20,"d":"20 €"},{"v":25,"d":"25 €"},{"$f":"DetalhesDoOrçamento[[#This Row],[Custo Previsto]]-DetalhesDoOrçamento[[#This Row],[Custo Real]]","v":{"v":-5,"d":"-5 €"}},{"$f":"DetalhesDoOrçamento[[#This Row],[Custo Real]]","v":{"v":25,"d":"$25"}}]
[null,"Saúde","Animais de estimação",null,null,{"$f":"DetalhesDoOrçamento[[#This Row],[Custo Previsto]]-DetalhesDoOrçamento[[#This Row],[Custo Real]]","v":{"v":0,"d":"0 €"}},{"$f":"DetalhesDoOrçamento[[#This Row],[Custo Real]]","v":{"v":0,"d":"$0"}}]
[null,"Brinquedos","Animais de estimação",null,null,{"$f":"DetalhesDoOrçamento[[#This Row],[Custo Previsto]]-DetalhesDoOrçamento[[#This Row],[Custo Real]]","v":{"v":0,"d":"0 €"}},{"$f":"DetalhesDoOrçamento[[#This Row],[Custo Real]]","v":{"v":0,"d":"$0"}}]
[null,"Conta de investimentos","Poupanças ou Investimento",{"v":200,"d":"200 €"},{"v":200,"d":"200 €"},{"$f":"DetalhesDoOrçamento[[#This Row],[Custo Previsto]]-DetalhesDoOrçamento[[#This Row],[Custo Real]]","v":{"v":0,"d":"0 €"}},{"$f":"DetalhesDoOrçamento[[#This Row],[Custo Real]]","v":{"v":200,"d":"$200"}}]
[null,"Conta poupança reforma","Poupanças ou Investimento",null,null,{"$f":"DetalhesDoOrçamento[[#This Row],[Custo Previsto]]-DetalhesDoOrçamento[[#This Row],[Custo Real]]","v":{"v":0,"d":"0 €"}},{"$f":"DetalhesDoOrçamento[[#This Row],[Custo Real]]","v":{"v":0,"d":"$0"}}]
[null,"Federal","Impostos",{"v":300,"d":"300 €"},{"v":300,"d":"300 €"},{"$f":"DetalhesDoOrçamento[[#This Row],[Custo Previsto]]-DetalhesDoOrçamento[[#This Row],[Custo Real]]","v":{"v":0,"d":"0 €"}},{"$f":"DetalhesDoOrçamento[[#This Row],[Custo Real]]","v":{"v":300,"d":"$300"}}]
[null,"Local","Impostos",null,null,{"$f":"DetalhesDoOrçamento[[#This Row],[Custo Previsto]]-DetalhesDoOrçamento[[#This Row],[Custo Real]]","v":{"v":0,"d":"0 €"}},{"$f":"DetalhesDoOrçamento[[#This Row],[Custo Real]]","v":{"v":0,"d":"$0"}}]
[null,"Estado","Impostos",null,null,{"$f":"DetalhesDoOrçamento[[#This Row],[Custo Previsto]]-DetalhesDoOrçamento[[#This Row],[Custo Real]]","v":{"v":0,"d":"0 €"}},{"$f":"DetalhesDoOrçamento[[#This Row],[Custo Real]]","v":{"v":0,"d":"$0"}}]
[null,"Preço do Autocarro/Táxi","Transporte",{"v":100,"d":"100 €"},{"v":150,"d":"150 €"},{"$f":"DetalhesDoOrçamento[[#This Row],[Custo Previsto]]-DetalhesDoOrçamento[[#This Row],[Custo Real]]","v":{"v":-50,"d":"-50 €"}},{"$f":"DetalhesDoOrçamento[[#This Row],[Custo Real]]","v":{"v":150,"d":"$150"}}]
[null,"Combustível","Transporte",{"v":450,"d":"450 €"},{"v":400,"d":"400 €"},{"$f":"DetalhesDoOrçamento[[#This Row],[Custo Previsto]]-DetalhesDoOrçamento[[#This Row],[Custo Real]]","v":{"v":50,"d":"50 €"}},{"$f":"DetalhesDoOrçamento[[#This Row],[Custo Real]]","v":{"v":400,"d":"$400"}}]
[null,"Seguro","Transporte",{"v":300,"d":"300 €"},{"v":300,"d":"300 €"},{"$f":"DetalhesDoOrçamento[[#This Row],[Custo Previsto]]-DetalhesDoOrçamento[[#This Row],[Custo Real]]","v":{"v":0,"d":"0 €"}},{"$f":"DetalhesDoOrçamento[[#This Row],[Custo Real]]","v":{"v":300,"d":"$300"}}]
[null,"Licenças ","Transporte",{"v":25,"d":"25 €"},{"v":25,"d":"25 €"},{"$f":"DetalhesDoOrçamento[[#This Row],[Custo Previsto]]-DetalhesDoOrçamento[[#This Row],[Custo Real]]","v":{"v":0,"d":"0 €"}},{"$f":"DetalhesDoOrçamento[[#This Row],[Custo Real]]","v":{"v":25,"d":"$25"}}]
[null,"Manutenção","Transporte",{"v":100,"d":"100 €"},{"v":50,"d":"50 €"},{"$f":"DetalhesDoOrçamento[[#This Row],[Custo Previsto]]-DetalhesDoOrçamento[[#This Row],[Custo Real]]","v":{"v":50,"d":"50 €"}},{"$f":"DetalhesDoOrçamento[[#This Row],[Custo Real]]","v":{"v":50,"d":"$50"}}]
[null,"Tarifa de estacionamento","Transporte",null,null,{"$f":"DetalhesDoOrçamento[[#This Row],[Custo Previsto]]-DetalhesDoOrçamento[[#This Row],[Custo Real]]","v":{"v":0,"d":"0 €"}},{"$f":"DetalhesDoOrçamento[[#This Row],[Custo Real]]","v":{"v":0,"d":"$0"}}]
[null,"Pagamento de veículos","Transporte",{"v":450,"d":"450 €"},{"v":450,"d":"450 €"},{"$f":"DetalhesDoOrçamento[[#This Row],[Custo Previsto]]-DetalhesDoOrçamento[[#This Row],[Custo Real]]","v":{"v":0,"d":"0 €"}},{"$f":"DetalhesDoOrçamento[[#This Row],[Custo Real]]","v":{"v":450,"d":"$450"}}]
[null,"Total",null,{"$f":"SUBTOTAL(109,DetalhesDoOrçamento[Custo Previsto])","v":{"v":7915,"d":"7,915 €"}},{"$f":"SUBTOTAL(109,DetalhesDoOrçamento[Custo Real])","v":{"v":7860,"d":"7,860 €"}},{"$f":"SUBTOTAL(109,DetalhesDoOrçamento[Diferença])","v":{"v":55,"d":"55 €"}}]

{"sheet":"Dados Adicionais","index":2,"n_rows":15,"n_cols":5,"rows_kept":15}
[null,"TabelaDinâmica de gráfico de Descrição Geral Orçamental",null,null,"Lista de Pesquisa para Categoria Detalhes Orçamentais"]
[null,"Categoria","Custo",null,"Pesquisa de Categoria Orçamental"]
[null,"Filhos",140,null,"Filhos"]
[null,"Entretenimento",358,null,"Entretenimento"]
[null,"Alimentação",1320,null,"Alimentação"]
[null,"Presentes e Beneficiência",125,null,"Presentes e Beneficiência"]
[null,"Habitação",2702,null,"Habitação"]
[null,"Seguro",900,null,"Seguro"]
[null,"Empréstimos",200,null,"Empréstimos"]
[null,"Cuidados Pessoais",140,null,"Cuidados Pessoais"]
[null,"Animais de estimação",100,null,"Animais de estimação"]
[null,"Poupanças ou Investimento",200,null,"Poupanças ou Investimento"]
[null,"Impostos",300,null,"Impostos"]
[null,"Transporte",1375,null,"Transporte"]
[null,"Загальний підсумок",7860]